bitfinex/quotes_SOLUSD_20250206
["timestamp","ask_amount","ask_price","bid_price","bid_amount"]
[1738853006312,40.25300931,195.97,195.94,0.03]
[1738853006618,70.25300931,195.98,195.94,0.03]
[1738853006815,40.25300931,195.95,195.94,0.03]
[1738853007648,40.25300931,195.97,195.94,0.03]
[1738853007851,40.25300931,195.95,195.94,0.03]
[1738853008217,30.0,195.98,195.94,0.03]
[1738853008521,30.0,196.0,195.94,40.28300931]
[1738853009147,30.0,196.0,195.94,0.03]
[1738853009633,70.25300931,196.0,195.94,0.03]
[1738853009835,70.25300931,195.98,195.94,0.03]
[1738853010015,70.25300931,195.96,195.94,0.03]
[1738853010220,40.25300931,195.97,195.94,0.03]
[1738853010430,40.25300931,195.96,195.94,0.03]
[1738853010634,40.25300931,195.97,195.94,0.03]
[1738853011015,30.0,195.98,195.94,0.03]
[1738853011218,0.10570216,195.95,195.94,40.28300931]
[1738853011418,0.10570216,195.95,195.94,0.03]
[1738853012734,70.35871147,195.95,195.94,0.03]
[1738853013131,30.10570216,195.95,195.94,0.03]
[1738853013330,0.10570216,195.95,195.94,0.03]
[1738853014237,0.10570216,195.95,195.94,40.28300931]
[1738853014535,0.10570216,195.95,195.94,5.1336]
[1738853014742,0.10570216,195.95,195.94,0.03]
[1738853014942,75.46201147,195.95,195.94,0.03]
[1738853015123,70.35871147,195.95,195.94,0.03]
[1738853015323,0.10570216,195.95,195.94,0.03]
[1738853015558,30.10570216,195.95,195.94,0.03]
[1738853015843,20.0,195.9,195.79,12.7684]
[1738853016019,20.0,195.88,195.74,1.76590323]
[1738853016220,20.0,195.88,195.78,52.95660246]
[1738853016521,30.0,195.83,195.78,47.84890246]
[1738853016843,30.0,195.83,195.81,40.25300931]
[1738853017142,30.0,195.86,195.81,40.25300931]
[1738853017318,40.25300931,195.89,195.81,40.25300931]
[1738853017639,12.86776626,195.96,195.79,5.1075]
[1738853017640,40.25300931,195.93,195.85,40.25300931]
[1738853017842,30.0,195.91,195.87,40.25300931]
[1738853018040,30.0,195.93,195.87,40.25300931]
[1738853018228,40.35871147,195.95,195.87,40.25300931]
[1738853018441,0.10570216,195.95,195.81,5.1069]
[1738853018634,0.10570216,195.95,195.89,40.25300931]
[1738853018849,70.25300931,195.93,195.81,17.8743]
[1738853019149,0.10570216,195.95,195.87,40.25300931]
[1738853019444,0.10570216,195.95,195.89,40.25300931]
[1738853019738,0.10570216,195.95,195.81,20.64006806]
[1738853019739,0.10570216,195.95,195.94,40.25300931]
[1738853020528,70.25300931,196.14,195.98,1.0]
[1738853020727,5.73e-05,196.02,195.99,2.76501958]
[1738853020948,7.284e-05,196.04,196.01,42.25300931]
[1738853021125,0.063,196.16,196.08,1.0]
[1738853021333,0.063,196.16,196.09,2.76473835]
[1738853021537,0.063,196.16,196.15,40.25300931]
[1738853022134,40.31600931,196.16,196.09,40.25300931]
[1738853022352,40.25300931,196.14,196.07,40.25300931]
[1738853022532,30.063,196.16,196.07,40.25300931]
[1738853022533,0.063,196.16,196.07,5.0999]
[1738853023433,30.063,196.16,196.07,5.0999]
[1738853023753,0.063,196.16,196.11,40.25300931]
[1738853024055,0.063,196.16,196.15,40.25300931]
[1738853024253,0.063,196.16,196.07,6.86471576]
[1738853024448,0.063,196.16,196.07,19.61521576]
[1738853024748,0.063,196.16,196.15,40.25300931]
[1738853025531,0.063,196.16,196.07,5.0999]
[1738853026054,30.0,196.15,196.03,5.1012]
[1738853026439,30.0,196.15,196.02,12.7532]
[1738853026745,40.25300931,196.12,196.05,40.25300931]
[1738853027059,40.25300931,196.14,196.06,40.25300931]
[1738853027251,40.25300931,196.13,196.06,40.25300931]
[1738853027754,35.0982,196.15,196.05,45.35350931]
[1738853027755,40.25300931,196.12,196.05,45.35350931]
[1738853028057,40.25300931,196.14,196.07,40.25300931]
[1738853028756,70.25300931,196.14,196.07,40.25300931]
[1738853028933,40.25300931,196.15,196.07,45.35310931]
[1738853029260,75.41390931,196.16,196.09,40.25300931]
[1738853029553,40.31600931,196.16,196.09,40.25300931]
[1738853029735,40.25300931,196.13,196.06,40.25300931]
[1738853029933,30.0,196.11,196.0,5.1017]
[1738853030160,40.25300931,196.07,196.0,5.1017]
[1738853030460,40.25300931,196.07,196.0,45.35470931]
[1738853030756,40.25300931,196.08,196.0,45.35470931]
[1738853030953,40.25300931,196.05,195.98,40.25300931]
[1738853031172,40.25300931,196.07,195.99,40.25300931]
[1738853031458,0.09486026,196.01,195.96,17.8607]
[1738853032367,0.09486026,196.01,195.97,0.7651399]
[1738853032545,0.09486026,196.01,196.0,40.25300931]
[1738853032730,0.09486026,196.01,195.99,45.35520931]
[1738853032934,0.09486026,196.01,195.99,40.25300931]
[1738853033245,0.09486026,196.01,195.98,40.25300931]
[1738853033443,0.09486026,196.01,195.97,5.1028]
[1738853033444,0.09486026,196.01,195.99,40.25300931]
[1738853033639,0.09486026,196.01,196.0,40.25300931]
[1738853033834,0.09486026,196.01,196.0,81.27106542]
[1738853034661,0.09486026,196.01,196.0,40.25300931]
[1738853034835,0.09486026,196.01,196.0,5.102]
[1738853035156,9.46e-05,196.04,196.0,87.37323029]
[1738853035353,0.11024606,196.05,196.03,13.41184853]
[1738853035354,4.066e-05,196.05,196.03,13.41184853]
[1738853035558,7.151e-05,196.09,196.05,13.66282853]
[1738853035760,7.151e-05,196.09,196.08,40.25300931]
[1738853036841,7.151e-05,196.09,196.08,45.35290931]
[1738853039060,7.151e-05,196.09,196.07,45.35290931]
[1738853039446,7.151e-05,196.09,196.06,40.25300931]
[1738853039649,7.151e-05,196.09,196.05,40.25300931]
[1738853040059,7.151e-05,196.09,196.06,40.25300931]
[1738853040458,7.151e-05,196.09,196.08,40.25300931]
[1738853040846,7.151e-05,196.09,196.08,101.03341459]
[1738853041041,6.985e-05,196.1,196.09,13.66282853]
[1738853041241,6.985e-05,196.1,196.09,94.16884715]
[1738853041438,6.985e-05,196.1,196.09,95.41982715]
[1738853041643,0.063,196.16,196.12,13.41184853]
[1738853041860,40.25300931,196.29,196.15,41.25300931]
[1738853042072,40.25300931,196.28,196.2,40.25300931]
[1738853042366,20.0,196.24,196.1,41.01746076]
[1738853042572,51.0,196.21,196.08,5.0999]
[1738853042753,30.0,196.19,196.08,5.0999]
[1738853042943,21.0,196.21,196.04,1.6862]
[1738853042944,5.0973,196.18,196.05,5.1007]
[1738853043146,5.0963,196.23,196.06,0.76481654]
[1738853043355,35.0963,196.23,196.06,2.76481654]
[1738853043560,40.25300931,196.21,196.14,40.25300931]
[1738853043785,40.25300931,196.15,196.06,40.25300931]
[1738853044087,40.25300931,196.15,196.05,5.1007]
[1738853044088,30.0,196.21,196.05,5.1007]
[1738853044245,17.8364,196.23,196.05,5.1007]
[1738853044246,30.0,196.23,196.1,13.41184853]
[1738853044452,35.0947,196.29,196.13,0.25098]
[1738853044689,5.0939,196.32,196.17,6.6397]
[1738853044980,0.063,196.36,196.2,13.66282853]
[1738853045153,0.063,196.36,196.22,13.41184853]
[1738853045351,5.1557,196.36,196.29,40.25300931]
[1738853045556,0.063,196.36,196.29,40.25300931]
[1738853045786,0.063,196.36,196.3,40.25300931]
[1738853046365,0.063,196.36,196.23,0.76402255]
[1738853046366,0.063,196.36,196.32,40.25300931]
[1738853046859,40.31600931,196.36,196.29,40.25300931]
[1738853047188,40.25300931,196.31,196.24,40.25300931]
[1738853047393,30.0,196.34,196.24,40.25300931]
[1738853047689,30.063,196.36,196.19,5.0969]
[1738853047984,0.063,196.36,196.21,13.66282853]
[1738853048183,0.063,196.36,196.22,0.76412974]
[1738853048361,0.063,196.36,196.19,5.0969]
[1738853048362,0.063,196.36,196.23,0.76418264]
[1738853048559,40.25300931,196.32,196.25,40.25300931]
[1738853048759,40.25300931,196.29,196.21,40.25300931]
[1738853048960,40.25300931,196.3,196.23,40.25300931]
[1738853049255,40.25300931,196.3,196.18,0.76435453]
[1738853049256,40.31600931,196.35,196.28,40.25300931]
[1738853049458,40.25300931,196.32,196.2,41.01709506]
[1738853049672,70.25300931,196.34,196.26,40.25300931]
[1738853049851,0.063,196.35,196.28,40.25300931]
[1738853050467,0.063,196.35,196.29,40.25300931]
[1738853050672,40.25300931,196.33,196.26,40.25300931]
[1738853050902,40.25300931,196.33,196.27,40.25300931]
[1738853051108,40.31600931,196.35,196.28,40.25300931]
[1738853051312,0.09341235,196.27,196.2,5.0968]
[1738853051604,0.09341235,196.27,196.18,5.0971]
[1738853051778,0.09341235,196.27,196.19,0.76423671]
[1738853051985,3.146e-05,196.28,196.24,13.41184853]
[1738853052301,0.17399526,196.35,196.27,20.0]
[1738853052506,0.17399526,196.35,196.31,40.25300931]
[1738853052683,0.17399526,196.35,196.29,40.25300931]
[1738853052883,40.34970644,196.34,196.26,40.25300931]
[1738853053089,40.34970644,196.34,196.22,5.0963]
[1738853053090,0.09669713,196.34,196.29,40.25300931]
[1738853053284,0.09669713,196.34,196.3,40.25300931]
[1738853053480,0.09669713,196.34,196.25,0.76396134]
[1738853053703,0.09669713,196.34,196.28,20.25098]
[1738853053906,0.09669713,196.34,196.3,13.66282853]
[1738853054222,0.09669713,196.34,196.31,0.76374836]
[1738853054798,0.09669713,196.34,196.32,13.41184853]
[1738853054799,3.65e-06,196.33,196.32,13.41184853]
[1738853054985,3.65e-06,196.33,196.32,58.75855784]
[1738853055974,3.65e-06,196.33,196.32,45.34670931]
[1738853056611,3.65e-06,196.33,196.32,40.25300931]
[1738853056785,3.65e-06,196.33,196.28,40.25300931]
[1738853057176,3.65e-06,196.33,196.28,45.34770931]
[1738853057380,40.25300931,196.32,196.25,40.25300931]
[1738853057582,3.65e-06,196.33,196.23,45.34880931]
[1738853057783,3.65e-06,196.33,196.27,40.25300931]
[1738853058014,3.65e-06,196.33,196.23,5.85997648]
[1738853058195,3.65e-06,196.33,196.29,40.25300931]
[1738853058391,3.65e-06,196.33,196.26,40.25300931]
[1738853058626,40.25300931,196.32,196.25,40.25300931]
[1738853059140,5.0937,196.32,196.25,40.25300931]
[1738853059297,3.65e-06,196.33,196.31,40.25300931]
[1738853059628,3.65e-06,196.33,196.32,40.25300931]
[1738853059827,3.65e-06,196.33,196.26,1.01505848]
[1738853059828,3.65e-06,196.33,196.26,0.76407848]
[1738853060416,3.65e-06,196.33,196.32,40.25300931]
[1738853060828,3.65e-06,196.33,196.31,40.25300931]
[1738853061037,3.65e-06,196.33,196.28,40.25300931]
[1738853061346,3.65e-06,196.33,196.32,40.25300931]
[1738853062611,3.65e-06,196.33,196.32,41.01675945]
[1738853062804,3.65e-06,196.33,196.32,40.25300931]
[1738853063032,3.65e-06,196.33,196.3,40.25300931]
[1738853063208,3.65e-06,196.33,196.28,40.25300931]
[1738853063408,3.65e-06,196.33,196.27,40.25300931]
[1738853063735,3.65e-06,196.33,196.29,40.25300931]
[1738853063935,3.65e-06,196.33,196.3,40.25300931]
[1738853064102,3.65e-06,196.33,196.28,40.25300931]
[1738853064307,3.65e-06,196.33,196.25,5.0955]
[1738853064308,3.65e-06,196.33,196.27,40.25300931]
[1738853065223,3.65e-06,196.33,196.29,40.25300931]
[1738853065743,3.65e-06,196.33,196.31,40.25300931]
[1738853066341,3.65e-06,196.33,196.28,45.34770931]
[1738853066520,3.65e-06,196.33,196.29,40.25300931]
[1738853067345,3.65e-06,196.33,196.32,40.25300931]
[1738853069108,3.65e-06,196.33,196.32,45.34670931]
[1738853069518,3.65e-06,196.33,196.31,40.25300931]
[1738853069848,3.65e-06,196.33,196.28,40.25300931]
[1738853070137,3.65e-06,196.33,196.31,40.25300931]
[1738853070341,3.65e-06,196.33,196.25,5.0955]
[1738853070709,3.65e-06,196.33,196.27,40.25300931]
[1738853070908,3.65e-06,196.33,196.31,40.25300931]
[1738853071144,0.063,196.35,196.32,40.25300931]
[1738853071308,0.063,196.35,196.31,45.34680931]
[1738853071309,0.09565116,196.33,196.31,45.34680931]
[1738853071710,0.09565116,196.33,196.32,40.25300931]
[1738853072506,5.116e-05,196.33,196.32,41.01681812]
[1738853072838,5.116e-05,196.33,196.32,54.42866665]
[1738853073139,5.116e-05,196.33,196.32,54.55415665]
[1738853073354,5.116e-05,196.33,196.32,46.11051812]
[1738853073526,5.116e-05,196.33,196.32,45.34670931]
[1738853074444,5.105e-05,196.34,196.33,0.12549]
[1738853074620,5.105e-05,196.34,196.33,24.90203851]
[1738853075147,5.105e-05,196.34,196.32,0.03]
[1738853075333,5.105e-05,196.34,196.33,24.90203851]
[1738853077554,5.105e-05,196.34,196.33,29.99543851]
[1738853078334,5.105e-05,196.34,196.33,30.7592335]
[1738853078534,5.105e-05,196.34,196.33,44.29657203]
[1738853078716,5.105e-05,196.34,196.33,44.42206203]
[1738853078924,1.572e-05,196.37,196.35,0.12549]
[1738853079120,1.572e-05,196.37,196.36,39.2029077]
[1738853079317,12.7204,196.54,196.36,39.2029077]
[1738853079318,24.90203851,196.54,196.4,0.12549]
[1738853079508,29.99003851,196.54,196.43,24.90203851]
[1738853079712,11.4998,196.55,196.43,25.15301851]
[1738853079917,0.063,196.55,196.44,0.12549]
[1738853080111,0.063,196.55,196.52,24.90203851]
[1738853080751,0.063,196.55,196.51,40.42021017]
[1738853081566,0.063,196.55,196.5,40.42021017]
[1738853081774,0.063,196.55,196.49,40.42021017]
[1738853082056,0.063,196.55,196.46,40.42021017]
[1738853082057,40.48321017,196.53,196.46,40.42021017]
[1738853082625,0.063,196.53,196.47,40.42021017]
[1738853082951,0.063,196.53,196.49,40.42021017]
[1738853083157,40.48321017,196.53,196.46,40.42021017]
[1738853083468,0.063,196.53,196.47,40.42021017]
[1738853083831,0.063,196.53,196.5,40.42021017]
[1738853084031,0.063,196.53,196.52,40.42021017]
[1738853084634,0.063,196.53,196.49,40.42021017]
[1738853084834,0.063,196.53,196.48,40.42021017]
[1738853085051,0.063,196.53,196.5,40.42021017]
[1738853085273,40.42021017,196.57,196.53,1.0]
[1738853085441,40.42021017,196.59,196.54,1.0]
[1738853085636,40.42021017,196.59,196.55,1.0]
[1738853085968,40.42021017,196.58,196.53,1.0]
[1738853086179,40.42021017,196.59,196.55,1.0]
[1738853086337,40.42021017,196.59,196.54,1.0]
[1738853086538,12.7142,196.63,196.51,42.42021017]
[1738853086539,40.42021017,196.58,196.51,42.42021017]
[1738853086954,40.42021017,196.54,196.51,1.0]
[1738853087141,40.42021017,196.57,196.52,1.0]
[1738853087350,40.42021017,196.59,196.53,1.0]
[1738853087667,31.22390233,196.71,196.52,41.42021017]
[1738853087668,5.0849,196.66,196.57,2.0]
[1738853087837,5.0838,196.7,196.6,1.0]
[1738853088251,30.0,196.69,196.55,1.0]
[1738853088454,40.42021017,196.6,196.56,1.0]
[1738853088784,40.42021017,196.61,196.55,2.0]
[1738853088992,40.42021017,196.63,196.56,2.0]
[1738853089195,40.42021017,196.63,196.57,1.0]
[1738853089396,30.0,196.72,196.61,2.0]
[1738853089596,40.42021017,196.69,196.62,1.0]
[1738853089760,40.42021017,196.66,196.59,1.0]
[1738853089962,40.42021017,196.64,196.58,2.0]
[1738853090386,40.42021017,196.63,196.57,1.0]
[1738853090692,40.42021017,196.59,196.55,2.0]
[1738853090859,40.42021017,196.63,196.56,41.42021017]
[1738853091060,40.42021017,196.63,196.57,2.0]
[1738853091285,40.42021017,196.63,196.56,40.42021017]
[1738853091286,0.1045452,196.57,196.56,42.42021017]
[1738853091580,0.1045452,196.57,196.55,2.0]
[1738853092087,0.1045452,196.57,196.55,1.0]
[1738853092396,0.1045452,196.57,196.56,42.42021017]
[1738853093187,0.1045452,196.57,196.56,40.42021017]
[1738853093369,0.1045452,196.57,196.52,2.0]
[1738853093980,0.1045452,196.57,196.52,42.42021017]
[1738853094166,0.1045452,196.57,196.53,1.0]
[1738853094684,0.1045452,196.57,196.54,1.0]
[1738853094854,0.1045452,196.57,196.52,1.0]
[1738853095373,45.61205537,196.57,196.52,1.0]
[1738853096283,5.1918452,196.57,196.52,1.0]
[1738853096887,0.1045452,196.57,196.53,1.0]
[1738853097284,0.1045452,196.57,196.52,41.42021017]
[1738853097601,5.1919452,196.57,196.52,1.0]
[1738853098122,40.42021017,196.56,196.52,1.0]
[1738853098288,40.42021017,196.55,196.52,1.0]
[1738853098490,40.42021017,196.56,196.52,1.0]
[1738853099336,5.1919452,196.57,196.52,1.03]
[1738853099337,0.1045452,196.57,196.52,1.03]
[1738853099526,5.1917452,196.57,196.52,2.03]
[1738853099717,0.1045452,196.57,196.52,2.03]
[1738853099921,0.1045452,196.57,196.56,42.42021017]
[1738853100223,0.1045452,196.57,196.56,41.42021017]
[1738853100525,0.1045452,196.57,196.56,42.42021017]
[1738853101084,0.1045452,196.57,196.56,26.84764537]
[1738853101281,3.891e-05,196.58,196.57,0.12549]
[1738853101480,3.891e-05,196.58,196.57,34.26031146]
[1738853101713,3.891e-05,196.58,196.57,39.22202146]
[1738853101899,3.891e-05,196.58,196.57,1.0]
[1738853102088,3.891e-05,196.58,196.55,2.0]
[1738853102283,3.891e-05,196.58,196.56,2.0]
[1738853102508,3.891e-05,196.58,196.57,2.76302634]
[1738853102805,0.09457955,196.59,196.58,1.12549]
[1738853102806,1.846e-05,196.59,196.58,1.12549]
[1738853103001,1.846e-05,196.59,196.58,26.97313537]
[1738853103415,0.10745179,196.61,196.6,1.12549]
[1738853103416,8.143e-05,196.61,196.6,1.12549]
[1738853103594,0.10540958,196.66,196.61,2.0]
[1738853103595,1.776e-05,196.62,196.61,2.0]
[1738853103793,1.776e-05,196.62,196.61,26.97313537]
[1738853104017,1.776e-05,196.62,196.61,26.84764537]
[1738853104518,1.776e-05,196.62,196.61,1.0]
[1738853105833,1.776e-05,196.62,196.58,1.0]
[1738853106120,24.84764537,196.6,196.58,1.0]
[1738853106321,24.84764537,196.61,196.58,1.0]
[1738853106621,24.84764537,196.59,196.54,1.0]
[1738853106923,24.84764537,196.58,196.54,1.0]
[1738853107433,24.84764537,196.55,196.52,1.03]
[1738853107922,5.0863,196.61,196.55,1.0]
[1738853108228,1.776e-05,196.62,196.57,1.0]
[1738853108394,1.776e-05,196.62,196.59,1.0]
[1738853108594,1.776e-05,196.62,196.58,1.0]
[1738853108795,1.776e-05,196.62,196.53,1.0]
[1738853108796,5.0862,196.61,196.53,1.0]
[1738853109010,24.84764537,196.59,196.53,2.0]
[1738853109218,24.84764537,196.57,196.52,1.03]
[1738853109601,24.84764537,196.55,196.52,1.03]
[1738853109926,29.93544537,196.55,196.52,1.03]
[1738853110212,24.84764537,196.53,196.52,1.03]
[1738853110422,24.84764537,196.53,196.52,0.03]
[1738853110737,40.45394421,196.53,196.52,0.03]
[1738853111099,40.45394421,196.53,196.52,0.0001]
[1738853111300,30.0,196.51,196.42,1.0]
[1738853111605,40.45394421,196.46,196.42,1.0]
[1738853111832,45.54404421,196.46,196.42,1.0]
[1738853112417,40.45394421,196.46,196.42,1.0]
[1738853112623,45.54384421,196.47,196.42,2.0]
[1738853112805,40.45394421,196.47,196.42,1.0]
[1738853113121,40.45394421,196.43,196.42,1.0]
[1738853113303,40.45394421,196.43,196.37,1.0]
[1738853113622,40.45394421,196.41,196.36,1.0]
[1738853113795,40.45394421,196.42,196.35,42.45394421]
[1738853113995,40.45394421,196.39,196.34,0.03]
[1738853114201,40.11827319,196.39,196.34,1.03]
[1738853114430,40.45394421,196.41,196.36,1.0]
[1738853114637,0.12549,196.49,196.36,1.0]
[1738853114638,5.0885,196.52,196.47,1.0]
[1738853114825,5.17992234,196.54,196.47,1.0]
[1738853115138,5.17992234,196.54,196.48,1.0]
[1738853115139,0.09172234,196.54,196.48,1.0]
[1738853115445,40.54566655,196.54,196.48,1.0]
[1738853115742,40.54566655,196.54,196.52,41.45394421]
[1738853115743,0.09172234,196.54,196.52,41.45394421]
[1738853116042,3.232e-05,196.54,196.53,2.0]
[1738853116211,0.10717486,196.56,196.55,2.0]
[1738853116531,0.10717486,196.56,196.55,43.21681551]
[1738853116747,0.10717486,196.56,196.55,42.45394421]
[1738853117108,0.10717486,196.56,196.55,2.0]
[1738853117306,0.10717486,196.56,196.51,2.0]
[1738853117307,40.56111907,196.56,196.51,2.0]
[1738853117503,0.10717486,196.56,196.48,1.0]
[1738853117739,40.45394421,196.54,196.49,1.0]
[1738853118037,40.45394421,196.55,196.49,1.0]
[1738853118243,40.45394421,196.55,196.47,42.45394421]
[1738853118448,40.45394421,196.51,196.44,42.45394421]
[1738853118748,40.45394421,196.54,196.47,1.0]
[1738853119046,40.45394421,196.55,196.5,1.0]
[1738853119248,0.10717486,196.56,196.48,41.45394421]
[1738853119411,0.10717486,196.56,196.49,1.0]
[1738853119611,40.45394421,196.55,196.48,41.45394421]
[1738853119844,40.45394421,196.55,196.48,1.0]
[1738853120038,40.45394421,196.53,196.46,2.0]
[1738853120212,5.19467486,196.56,196.44,1.0]
[1738853120213,40.45394421,196.51,196.44,1.0]
[1738853120414,40.45394421,196.5,196.45,1.0]
[1738853120736,40.45394421,196.51,196.45,1.0]
[1738853121040,40.45394421,196.51,196.44,2.0]
[1738853121223,40.45394421,196.5,196.43,2.0]
[1738853121421,40.45394421,196.52,196.48,1.0]
[1738853121628,40.45394421,196.52,196.45,41.45394421]
[1738853121813,40.45394421,196.51,196.45,1.0]
[1738853122141,40.45394421,196.51,196.44,1.0]
[1738853122336,40.45394421,196.5,196.43,6.0907]
[1738853122550,40.45394421,196.47,196.39,42.45394421]
[1738853122835,40.45394421,196.43,196.36,1.0]
[1738853123038,40.45394421,196.42,196.34,42.48394421]
[1738853123243,40.45394421,196.42,196.35,1.0]
[1738853123411,30.0,196.45,196.34,6.1231]
[1738853123412,40.45394421,196.4,196.34,6.1231]
[1738853123757,40.45394421,196.4,196.34,1.03]
[1738853123958,40.45394421,196.42,196.34,46.57704421]
[1738853124242,40.45394421,196.4,196.34,1.03]
[1738853124439,40.45394421,196.38,196.34,0.03]
[1738853124736,5.0908,196.44,196.34,0.03]
[1738853124737,40.45394421,196.39,196.34,0.03]
[1738853125233,40.45394421,196.4,196.34,0.03]
[1738853125639,40.45394421,196.41,196.36,1.0]
[1738853125846,40.45394421,196.41,196.35,1.0]
[1738853126014,40.45394421,196.4,196.35,2.0]
[1738853126218,40.45394421,196.49,196.41,1.0]
[1738853126512,40.45394421,196.48,196.41,2.0]
[1738853126718,40.45394421,196.45,196.4,1.0]
[1738853126914,30.0,196.48,196.43,1.0]
[1738853127113,30.0,196.54,196.45,1.0]
[1738853127428,20.454543,196.55,196.47,2.0]
[1738853127627,20.454543,196.55,196.5,2.0]
[1738853127927,0.063,196.55,196.51,1.0]
[1738853128120,40.45394421,196.54,196.5,1.0]
[1738853128319,40.45394421,196.53,196.5,1.0]
[1738853128541,40.51694421,196.55,196.52,1.0]
[1738853128736,0.063,196.55,196.53,1.0]
[1738853128947,0.063,196.55,196.54,1.0]
[1738853129241,0.063,196.55,196.43,0.763302]
[1738853129242,40.51694421,196.55,196.47,1.0]
[1738853129451,40.45394421,196.49,196.46,1.0]
[1738853129747,40.45394421,196.48,196.44,1.0]
[1738853129920,40.45394421,196.48,196.45,1.0]
[1738853130420,40.45394421,196.49,196.47,1.0]
[1738853130641,40.45394421,196.5,196.45,1.0]
[1738853130840,0.063,196.55,196.45,1.0]
[1738853130841,40.45394421,196.47,196.45,1.0]
[1738853131142,40.45394421,196.48,196.45,1.0]
[1738853131348,0.09806868,196.49,196.48,1.0]
[1738853131547,0.09806868,196.49,196.46,1.0]
[1738853131859,40.45394421,196.48,196.45,1.0]
[1738853132251,40.45394421,196.48,196.46,1.0]
[1738853132423,0.09806868,196.49,196.48,2.0]
[1738853132842,0.09806868,196.49,196.48,42.45394421]
[1738853133241,0.09806868,196.49,196.48,2.0]
[1738853133438,0.09806868,196.49,196.48,42.45394421]
[1738853134132,0.09806868,196.49,196.48,47.54344421]
[1738853134546,6.868e-05,196.49,196.48,47.66893421]
[1738853134862,6.868e-05,196.49,196.48,47.54344421]
[1738853135856,6.868e-05,196.49,196.48,47.57344421]
[1738853136057,6.868e-05,196.49,196.48,2.03]
[1738853136236,6.868e-05,196.49,196.48,42.48394421]
[1738853138171,6.868e-05,196.49,196.48,2.03]
[1738853138333,6.868e-05,196.49,196.48,1.03]
[1738853138534,6.868e-05,196.49,196.48,0.03]
[1738853138836,40.45401289,196.49,196.48,0.03]
[1738853140243,20.0,196.44,196.37,1.0]
[1738853140455,40.45394421,196.38,196.34,1.03]
[1738853140634,31.47539721,196.49,196.35,1.0]
[1738853140635,40.45394421,196.39,196.35,1.0]
[1738853140831,40.45394421,196.39,196.34,0.03]
[1738853140832,40.45394421,196.4,196.38,1.0]
[1738853141154,30.0,196.47,196.38,41.45394421]
[1738853141337,40.45394421,196.44,196.39,1.0]
[1738853141532,40.45394421,196.41,196.38,1.0]
[1738853141756,40.45394421,196.41,196.37,1.0]
[1738853141959,40.45394421,196.41,196.36,1.0]
[1738853142161,40.45394421,196.41,196.38,1.0]
[1738853142360,40.45394421,196.39,196.34,1.03]
[1738853142565,17.8152,196.46,196.38,1.0]
[1738853142566,47.8152,196.46,196.38,1.0]
[1738853142747,5.0895,196.48,196.42,1.0]
[1738853142946,6.868e-05,196.49,196.42,1.0]
[1738853143154,6.868e-05,196.49,196.43,1.0]
[1738853143348,40.45394421,196.46,196.41,2.0]
[1738853143551,40.45394421,196.47,196.43,1.0]
[1738853143950,6.868e-05,196.49,196.46,2.0]
[1738853144159,6.868e-05,196.49,196.47,1.0]
[1738853144372,6.868e-05,196.49,196.48,1.0]
[1738853144553,6.868e-05,196.49,196.48,2.0]
[1738853144754,6.868e-05,196.49,196.47,1.0]
[1738853145540,40.45401289,196.49,196.45,2.0]
[1738853145868,40.45401289,196.49,196.41,1.5642]
[1738853145869,40.45394421,196.48,196.44,2.0]
[1738853146075,40.45394421,196.45,196.42,1.0]
[1738853146285,40.45394421,196.45,196.41,2.0]
[1738853146441,40.45394421,196.45,196.42,1.0]
[1738853146948,40.45394421,196.43,196.39,1.0]
[1738853147161,40.45394421,196.41,196.37,1.0]
[1738853147365,40.45394421,196.4,196.37,1.0]
[1738853147575,40.45394421,196.39,196.37,1.0]
[1738853147752,40.45394421,196.39,196.36,1.0]
[1738853147952,40.45394421,196.39,196.37,1.0]
[1738853148158,40.45394421,196.4,196.37,1.0]
[1738853148487,40.45394421,196.39,196.34,1.03]
[1738853148672,40.45394421,196.4,196.35,1.0]
[1738853148852,40.45394421,196.37,196.34,1.03]
[1738853149050,35.0911,196.42,196.34,0.03]
[1738853149051,40.45394421,196.36,196.34,0.03]
[1738853149269,40.45394421,196.38,196.34,1.03]
[1738853149961,40.45394421,196.38,196.35,1.0]
[1738853150282,13.53733853,196.46,196.37,1.0]
[1738853150283,40.45394421,196.41,196.37,1.0]
[1738853150452,40.45394421,196.39,196.34,1.03]